Workbook

Sheet Кэфы
B4: До следующего обновления цен на рыбу осталось: | E4: =HOUR(TEXT(IF(TEXT(MID(INDEX(Выгрузка!$A:$A,MATCH("Последнее изменение цен было в *",Выгрузка!$A:$A,0),1),32,5)*1+5/24,"ч:мм")*1-(NOW()-TODAY())<0, TEXT(MID(INDEX(Выгрузка!$A:$A,MATCH("Последнее изменение цен было в *",Выгрузка!$A:$A,0),1),32,5)*1+5/24,"ч:мм")*1-(NOW()-TODAY())+1,TEXT(MID(INDEX(Выгрузка!$A:$A,MATCH("Последнее изменение цен было в *",Выгрузка!$A:$A,0),1),32,5)*1+5/24,"ч:мм")*1-(NOW()-TODAY())),"ч:мм"))&"ч "&MINUTE(TEXT(IF(TEXT(MID(INDEX(Выгрузка!$A:$A,MATCH("Последнее изменение цен было в *",Выгрузка!$A:$A,0),1),32,5)*1+5/24,"ч:мм")*1-(NOW()-TODAY())<0, TEXT(MID(INDEX(Выгрузка!$A:$A,MATCH("Последнее изменение цен было в *",Выгрузка!$A:$A,0),1),32,5)*1+5/24,"ч:мм")*1-(NOW()-TODAY())+1,TEXT(MID(INDEX(Выгрузка!$A:$A,MATCH("Последнее изменение цен было в *",Выгрузка!$A:$A,0),1),32,5)*1+5/24,"ч:мм")*1-(NOW()-TODAY())),"ч:мм"))&"мин" -> 1ч 36мин | F4: реального времени
B6: Кит | C6: Шт. | D6: Текущий кэф | E6: Макс. кэф | F6: % от макс.*
B7: Кашалот | C7: =INDEX(Вычисления!$1:$1048576,MATCH($B7,Вычисления!$A:$A,0)-2,5) -> 339 | D7: =IF(C7<=10, "Баг с ценой", VLOOKUP(B7,Вычисления!$A:$E,5,0)) -> 1.036418098 | E7: 1.044614911 | F7: =IF(D7="Баг с ценой", "Не продавай!",D7/E7) -> 0.992153269
B8: Кит горбатый | C8: =INDEX(Вычисления!$1:$1048576,MATCH($B8,Вычисления!$A:$A,0)-2,5) -> 54 | D8: =IF(C8<=10, "Баг с ценой", VLOOKUP(B8,Вычисления!$A:$E,5,0)) -> 1.095766436 | E8: 1.096508368 | F8: =IF(D8="Баг с ценой", "Не продавай!",D8/E8) -> 0.9993233688
B9: Кит горбатый-альбинос | C9: =INDEX(Вычисления!$1:$1048576,MATCH($B9,Вычисления!$A:$A,0)-2,5) -> 28 | D9: =IF(C9<=10, "Баг с ценой", VLOOKUP(B9,Вычисления!$A:$E,5,0)) -> 1.731669523 | E9: 1.732207635 | F9: 0.9996893491
B10: Кит синий северный | C10: =INDEX(Вычисления!$1:$1048576,MATCH($B10,Вычисления!$A:$A,0)-2,5) -> 7 | D10: =IF(C10<=10, "Баг с ценой", VLOOKUP(B10,Вычисления!$A:$E,5,0)) -> Баг с ценой | E10: 1.443316915 | F10: Не продавай!
B11: Кит серый | C11: =INDEX(Вычисления!$1:$1048576,MATCH($B11,Вычисления!$A:$A,0)-2,5) -> 8 | D11: =IF(C11<=10, "Баг с ценой", VLOOKUP(B11,Вычисления!$A:$E,5,0)) -> Баг с ценой | E11: 0.952566527 | F11: Не продавай!
B12: Кит японский | C12: =INDEX(Вычисления!$1:$1048576,MATCH($B12,Вычисления!$A:$A,0)-2,5) -> 0 | D12: =IF(C12<=10, "Баг с ценой", VLOOKUP(B12,Вычисления!$A:$E,5,0)) -> Баг с ценой | E12: 2.165551684 | F12: Не продавай!
B13: Сейвал или кит ивасевый | C13: =INDEX(Вычисления!$1:$1048576,MATCH($B13,Вычисления!$A:$A,0)-2,5) -> 211 | D13: =IF(C13<=10, "Баг с ценой", VLOOKUP(B13,Вычисления!$A:$E,5,0)) -> 0.6131157165 | E13: 0.6138598416 | F13: 0.9987877931
B14: Финвал | C14: =INDEX(Вычисления!$1:$1048576,MATCH($B14,Вычисления!$A:$A,0)-2,5) -> 22845 | D14: =IF(C14<=10, "Баг с ценой", VLOOKUP(B14,Вычисления!$A:$E,5,0)) -> 0.2154220584 | E14: 0.9269614197 | F14: 0.232395927
B16: * Показывает в %, насколько текущая цена велика в сравнении с максимальной известной мне. Условные обозначения в виде стрелок и соответствующие значения описаны под таблицей. Изучи их и прими решение о продаже самостоятельно или в соответствии с рекомендациями.
B21: [98% - 100%] Смело продавай, прекрасная цена
B22: [95% - 98%] Тоже отличная цена, но нередко бывает лучше
B23: [90% - 95%] Средняя цена. Лучше придержи и продай позже
B24: [80% - 90%] Плохая цена. Продавай, только если срочно нужны деньги
B25: Ниже 80% Рыба не в цене. Ни в коем случае не продавай

Sheet Выгрузка с сайта (hidden)
A1: Место: | B1: Рыба: | C1: Рыба:2 | D1: Прогресс: | E1: Продано (шт):
A2: 1 | C2: Косаткодельфин | E2: 0
A3: 2 | C3: Морская свинья бесперая | E3: 0
A4: 3 | C4: Рыба луна короткая | E4: 0
A5: 4 | C5: Манта рифовая | E5: 0
A6: 5 | C6: Рыба-луна овальная | E6: 0
A7: 6 | C7: Сельдь чёшско-печорская | E7: 0
A8: 7 | C8: Сельдь волжская | E8: 0
A9: 8 | C9: Менхэден бразильский | E9: 0
A10: 9 | C10: Бэрардиус Бэрда | E10: 0
A11: 10 | C11: Акула мозамбикская бычья | E11: 0
A12: 11 | C12: Кит синий альбинос | E12: 0
A13: 12 | C13: Группер Малабарский | E13: 0
A14: 13 | C14: Осьминог Думбо | E14: 0
A15: 14 | C15: Кит японский | E15: 0
A16: 16 | C16: Антимора клюворылая | E16: 0
A17: 17 | C17: Косатка малая | E17: 0
A18: 19 | C18: Афалина | E18: 0
A19: 20 | C19: Ремнезуб командорский | E19: 0
A20: 21 | C20: Пузанок северокаспийский | E20: 0
A21: 22 | C21: Рыба-тряпка | E21: 0
A22: 23 | C22: Чешуйчатник | E22: 0
A23: 24 | C23: Семапрохилодус | E23: 0
A24: 25 | C24: Морская свинья обыкновенная | E24: 0
A25: 26 | C25: Эолидия | E25: 0
A26: 30 | C26: Кланкулюс | E26: 0
A27: 31 | C27: Граммистес шестиполосый | E27: 0
A28: 33 | C28: Форель Бива | E28: 0
A29: 34 | C29: Вьюн амурский | E29: 0
A30: 35 | C30: Сельдь тихоокеанская | E30: 0
A31: 36 | C31: Сельдь атлантическая | E31: 0
A32: 37 | C32: Кит южный гладкий | E32: 0
A33: 38 | C33: Каранкс бронзовый | E33: 0
A34: 39 | C34: Кинжалозуб | E34: 0
A35: 40 | C35: Полосатик Омуры | E35: 0
A36: 41 | C36: Каранкс Гебера | E36: 0
A37: 43 | C37: Кижуч озерный | E37: 0
A38: 44 | C38: Голец носатый | E38: 0
A39: 47 | C39: Форель остроголовая | E39: 0
A40: 49 | C40: Осетр тихоокеанский | E40: 0
A41: 52 | C41: Рыба-ремень, сельдяной король | E41: 0
A42: 53 | C42: Катран вануатский | E42: 0
A43: 54 | C43: Краб-йети | E43: 0
A44: 55 | C44: Акулеола черная | E44: 0
A45: 56 | C45: Акула черная (Далатия) | E45: 0
A46: 57 | C46: Хирург-Ахиллес | E46: 0
A47: 58 | C47: Мегалодон | E47: 0
A48: 59 | C48: Мешкорот | E48: 0
A49: 60 | C49: Багре хигучи | E49: 0
A50: 61 | C50: Акула эполетовая | E50: 0
A51: 62 | C51: Акула губастая | E51: 0
A52: 63 | C52: Пилонос японский | E52: 0
A53: 64 | C53: Плиотрема | E53: 0
A54: 65 | C54: Австралийский пилонос | E54: 0
A55: 66 | C55: Минога сибирская | E55: 0
A56: 67 | C56: Палтус американский | E56: 0
A57: 68 | C57: Центрина Австралийская | E57: 0
A58: 70 | C58: Хвостокол кольчатый | E58: 0
A59: 71 | C59: Сарпа | E59: 0
A60: 72 | C60: Форель Дональдсона | E60: 0
A61: 73 | C61: Акула сигарная | E61: 0
A62: 74 | C62: Акула скульптурная | E62: 0
A63: 75 | C63: Акула - свинья | E63: 0
A64: 77 | C64: Акула светлохвостая | E64: 0
A65: 78 | C65: Лихия | E65: 0
A66: 79 | C66: Маллисквама | E66: 0
A67: 80 | C67: Камбала двухцветная | E67: 0
A68: 81 | C68: Акула шершавая | E68: 0
A69: 82 | C69: Калкан черноморский | E69: 0
A70: 91 | C70: Лягушка нильская | E70: 0
A71: 92 | C71: Мелания песчаная | E71: 0
A72: 94 | C72: Карась-барабан | E72: 0
A73: 95 | C73: Шипощёк длинноперый | E73: 0
A74: 96 | C74: Рыба-кабан трехполосая | E74: 0
A75: 97 | C75: Удильщик Джонсона | E75: 0
A76: 100 | C76: Скат-орляк пятнистый | E76: 0
A77: 107 | C77: Кит Бискайский | E77: 0
A78: 108 | C78: Сферомия пятнистая | E78: 0
A79: 110 | C79: Королева Ньяса | E79: 0
A80: 115 | C80: Неалот | E80: 0
A81: 118 | C81: Крылатка-зебра | E81: 0
A82: 119 | C82: Тигровая рыба обыкновенная | E82: 0
A83: 120 | C83: Китовая акула - альбинос | E83: 0
A84: 121 | E84: 0
A85: 122 | C85: Свистулька голубопятнистая | E85: 0
A86: 126 | C86: Тиляпия галилейская | E86: 0
A87: 131 | C87: Шильб полосатый | E87: 0
A88: 145 | C88: Линофрина индийская | E88: 0
A89: 146 | C89: Аба-аба | E89: 0
A90: 149 | C90: Акула - квагга | E90: 0
A91: 150 | C91: Оксимонокант длиннорылый | E91: 0
A92: 151 | C92: Макрурус вооруженный | E92: 0
A93: 152 | C93: Группер белоокаймленный | E93: 0
A94: 153 | C94: Синодонтис вуалевый | E94: 0
A95: 154 | C95: Велифер | E95: 0
A96: 156 | C96: Конус березовый | E96: 0
A97: 163 | C97: Конус дворцовый | E97: 0
A98: 164 | C98: Конус Мильн-Эдвардса | E98: 0
A99: 165 | C99: Ящерица каймановая | E99: 0
A100: 166 | C100: Ампуллярия | E100: 0
A101: 167 | C101: Цихлазома мезонаута | E101: 0
A102: 169 | C102: Хемиодопсис | E102: 0
A103: 171 | C103: Серцевидка | E103: 0
A104: 172 | C104: Морская свинья Далля | E104: 0
A105: 173 | C105: Акула плоскоголовая | E105: 0
A106: 175 | C106: Пирапитинга | E106: 0
A107: 177 | C107: Пиранья стройная | E107: 0
A108: 183 | C108: Таедо | E108: 0
A109: 185 | C109: Волютопсиус каштановый | E109: 0
A110: 186 | C110: Спинорог золотоплавниковый | E110: 0
A111: 187 | C111: Глаукус | E111: 0
A112: 188 | C112: Спинорог бело-зеленый | E112: 0
A113: 189 | C113: Ликодонт яванский | E113: 0
A114: 190 | C114: Полосатик Идена | E114: 0
A115: 191 | C115: Бисса | E115: 0
A116: 196 | C116: Креветка северная | E116: 0
A117: 199 | C117: Необерингиус Фрилея | E117: 0
A118: 203 | C118: Перечный слизняк | E118: 0
A119: 204 | C119: Ремнезуб атлантический | E119: 0
A120: 205 | C120: Краб вельветовый | E120: 0
A121: 206 | C121: Тунец макрелевый | E121: 0
A122: 211 | C122: Краб Мраморный | E122: 0
A123: 212 | C123: Кои Ямабуки Огон | E123: 0
A124: 213 | C124: Чоп | E124: 0
A125: 215 | C125: Итальянский усач | E125: 0
A126: 217 | C126: Евдошка европейская | E126: 0
A127: 219 | C127: Помакант рябой | E127: 0
A128: 223 | C128: Младица или Лосось дунайский | E128: 0
A129: 225 | C129: Логгерхед | E129: 0
A130: 226 | C130: Наутилус палаванский | E130: 0
A131: 227 | C131: Лепоринус Фредерика | E131: 0
A132: 228 | C132: Метиннис пятнистый | E132: 0
A133: 233 | C133: Пираиба | E133: 0
A134: 234 | C134: Павлиний окунь ленточный | E134: 0
A135: 235 | C135: Милеус ленточный | E135: 0
A136: 236 | C136: Милоссома килебрюхая | E136: 0
A137: 237 | C137: Аравана черная | E137: 0
A138: 239 | C138: Анаконда | E138: 0
A139: 240 | C139: Акара голубовато-пятнистая | E139: 0
A140: 241 | C140: Акарихтис Хекеля | E140: 0
A141: 242 | C141: Дианема полосатохвостая | E141: 0
A142: 243 | C142: Дискус Хеккеля | E142: 0
A143: 244 | C143: Джакунда | E143: 0
A144: 246 | C144: Гидромедуза бразильская | E144: 0
A145: 247 | C145: Саблезуб | E145: 0
A146: 249 | C146: Рыба-капля | E146: 0
A147: 250 | C147: Бельдюга Андрияшева | E147: 0
A148: 251 | C148: Макропинна | E148: 0
A149: 252 | C149: Черный нож | E149: 0
A150: 253 | C150: Пиранья крапчатая | E150: 0
A151: 254 | C151: Алепизавр | E151: 0
A152: 255 | C152: Скат гладкий | E152: 0
A153: 256 | C153: Кракен | E153: 0
A154: 257 | C154: Павлиний окунь королевский | E154: 0
A155: 258 | C155: Оринокский крокодил | E155: 0
A156: 259 | C156: Акула коромандельская | E156: 0
A157: 262 | C157: Голец чукотский | E157: 0
A158: 263 | C158: Морская свинья очковая | E158: 0
A159: 264 | C159: Амия | E159: 0
A160: 265 | C160: Осетр белый | E160: 0
A161: 266 | C161: Хендфиш | E161: 0
A162: 267 | C162: Акула Мицукури | E162: 0
A163: 268 | C163: Рыба-сабля | E163: 0
A164: 269 | C164: Галаксия чилийская | E164: 0
A165: 270 | C165: Жемчужная рыба | E165: 0
A166: 271 | C166: Пайара | E166: 0
A167: 272 | C167: Акула плащеносная | E167: 0
A168: 273 | C168: Акула-домовой | E168: 0
A169: 274 | C169: Акула светящаяся | E169: 0
A170: 275 | C170: Кои Асаги | E170: 0
A171: 276 | C171: Чешуеед, Плагиотрем чешуеедный | E171: 0
A172: 277 | C172: Кайман широкомордый | E172: 0
A173: 278 | C173: Форель апачей | E173: 0
A174: 279 | C174: Губка-лира | E174: 0
A175: 280 | C175: Клюворыл Шепарда | E175: 0
A176: 283 | C176: Пирарара | E176: 0
A177: 284 | C177: Скат акулохвостый | E177: 0
A178: 285 | C178: Носорог пятнистый | E178: 0
A179: 286 | C179: Матамата | E179: 0
A180: 287 | C180: Лазианциструс | E180: 0
A181: 288 | C181: Панцирник мисиссипский | E181: 0
A182: 289 | C182: Рак красный флоридский | E182: 0
A183: 290 | C183: Панцирник длиннорылый | E183: 0
A184: 291 | C184: Евдошка американская | E184: 0
A185: 293 | C185: Омар норвежский | E185: 0
A186: 297 | C186: Осьминог семирукий | E186: 0
A187: 299 | C187: Рыбальдо | E187: 0
A188: 301 | C188: Морская свинья аргентинская | E188: 0
A189: 303 | C189: Буффало большеротый | E189: 0
A190: 305 | C190: Венера воздушная | E190: 0
A191: 310 | C191: Голец белый | E191: 0
A192: 311 | C192: Кои Утсури | E192: 0
A193: 312 | E193: 0
A194: 313 | C194: Акула копьезубая | E194: 0
A195: 315 | C195: Плавун южный | E195: 0
A196: 316 | C196: Кит гренландский | E196: 0
A197: 319 | E197: 0
A198: 320 | E198: 0
A199: 321 | C199: Омуль баргузинский | E199: 0
A200: 322 | E200: 0
... 1157 more rows

Sheet Выгрузка (hidden)
A1: Серверы
A2: Вход или регистрация
A3: Войти Регистрация Забыли пароль? Не пришел пароль?
A4: Загрузить
A5: Загрузить игру
A6: Обои на рабочий стол
A7: Новости
A8: Турниры
A9: Регулярные турниры
A10: Big Game Fishing
A11: Рейтинги
A12: Рейтинги игроков
A13: Таблица рекордов
A14: Командный турнирный рейтинг
A15: Командный дуэльный рейтинг
A16: Справочник
A17: Статистика сервера
A18: Цены на рыбу
A19: Список рыбы
A20: Список предметов
A21: Список водоемов
A22: Вопросы и ответы
A23: Мобильная версия
A24: Загрузить игру МРР
A25: Помощь и советы МРР
A26: Таблица рекордов МРР
A27: Цены на рыбу МРР
A28: Карта сервера МРР
A29: Расписание турниров МРР
A30: Рейтинги игроков МРР
A31: Рейтинг команд МРР
A32: Разработка
A33: Сообщество
A34: Форум
A35: Социальные сети
A36: Главная »
A37: Цены на рыбу
A39: Цены на рыбу
A41: Стоимость рыбы меняется каждые 5 реальных часов. Чем больше продают данную рыбу, тем меньше она стоит.
A43: Ниже представлен спрос на рыбу в порядке убывания.
A44: Последнее изменение цен было в 15:25 МСК.
A45: Место: | B45: Рыба: | D45: Прогресс: | E45: Продано (шт):
A46: 1 | C46: Косаткодельфин | E46: 0
A47: 2 | C47: Морская свинья бесперая | E47: 0
A48: 3 | C48: Рыба луна короткая | E48: 0
A49: 4 | C49: Манта рифовая | E49: 0
A50: 5 | C50: Рыба-луна овальная | E50: 0
A51: 6 | C51: Сельдь чёшско-печорская | E51: 0
A52: 7 | C52: Сельдь волжская | E52: 0
A53: 8 | C53: Менхэден бразильский | E53: 0
A54: 9 | C54: Бэрардиус Бэрда | E54: 0
A55: 10 | C55: Акула мозамбикская бычья | E55: 0
A56: 11 | C56: Кит синий альбинос | E56: 0
A57: 12 | C57: Группер Малабарский | E57: 0
A58: 13 | C58: Осьминог Думбо | E58: 0
A59: 14 | C59: Кит японский | E59: 0
A60: 15 | C60: Кит синий северный | E60: 7
A61: 16 | C61: Антимора клюворылая | E61: 0
A62: 17 | C62: Косатка малая | E62: 0
A63: 18 | C63: Осетр адриатический | E63: 1
A64: 19 | C64: Афалина | E64: 0
A65: 20 | C65: Ремнезуб командорский | E65: 0
A66: 21 | C66: Пузанок северокаспийский | E66: 0
A67: 22 | C67: Рыба-тряпка | E67: 0
A68: 23 | C68: Чешуйчатник | E68: 0
A69: 24 | C69: Семапрохилодус | E69: 0
A70: 25 | C70: Морская свинья обыкновенная | E70: 0
A71: 26 | C71: Эолидия | E71: 0
A72: 27 | C72: Конус письменный | E72: 1
A73: 28 | C73: Бычеглаз-хамрур | E73: 5
A74: 29 | C74: Мурджан | E74: 58
A75: 30 | C75: Кланкулюс | E75: 0
A76: 31 | C76: Граммистес шестиполосый | E76: 0
A77: 32 | C77: Кит северный гладкий | E77: 5
A78: 33 | C78: Форель Бива | E78: 0
A79: 34 | C79: Вьюн амурский | E79: 0
A80: 35 | C80: Сельдь тихоокеанская | E80: 0
A81: 36 | C81: Сельдь атлантическая | E81: 0
A82: 37 | C82: Кит южный гладкий | E82: 0
A83: 38 | C83: Каранкс бронзовый | E83: 0
A84: 39 | C84: Кинжалозуб | E84: 0
A85: 40 | C85: Полосатик Омуры | E85: 0
A86: 41 | C86: Каранкс Гебера | E86: 0
A87: 42 | C87: Голец узонский | E87: 1
A88: 43 | C88: Кижуч озерный | E88: 0
A89: 44 | C89: Голец носатый | E89: 0
A90: 45 | C90: Голец дальнеозерский | E90: 1
A91: 46 | C91: Голец длинноголовый | E91: 2
A92: 47 | C92: Форель остроголовая | E92: 0
A93: 48 | C93: Хариус Камчатский | E93: 17
A94: 49 | C94: Осетр тихоокеанский | E94: 0
A95: 50 | C95: Корюшка озерная малоротая | E95: 30
A96: 51 | C96: Нерка карликовая | E96: 21
A97: 52 | C97: Рыба-ремень, сельдяной король | E97: 0
A98: 53 | C98: Катран вануатский | E98: 0
A99: 54 | C99: Краб-йети | E99: 0
A100: 55 | C100: Акулеола черная | E100: 0
A101: 56 | C101: Акула черная (Далатия) | E101: 0
A102: 57 | C102: Хирург-Ахиллес | E102: 0
A103: 58 | C103: Мегалодон | E103: 0
A104: 59 | C104: Мешкорот | E104: 0
A105: 60 | C105: Багре хигучи | E105: 0
A106: 61 | C106: Акула эполетовая | E106: 0
A107: 62 | C107: Акула губастая | E107: 0
A108: 63 | C108: Пилонос японский | E108: 0
A109: 64 | C109: Плиотрема | E109: 0
A110: 65 | C110: Австралийский пилонос | E110: 0
A111: 66 | C111: Минога сибирская | E111: 0
A112: 67 | C112: Палтус американский | E112: 0
A113: 68 | C113: Центрина Австралийская | E113: 0
A114: 69 | C114: Семга Камчатская | E114: 2
A115: 70 | C115: Хвостокол кольчатый | E115: 0
A116: 71 | C116: Сарпа | E116: 0
A117: 72 | C117: Форель Дональдсона | E117: 0
A118: 73 | C118: Акула сигарная | E118: 0
A119: 74 | C119: Акула скульптурная | E119: 0
A120: 75 | C120: Акула - свинья | E120: 0
A121: 76 | C121: Акула острозубая | E121: 1
A122: 77 | C122: Акула светлохвостая | E122: 0
A123: 78 | C123: Лихия | E123: 0
A124: 79 | C124: Маллисквама | E124: 0
A125: 80 | C125: Камбала двухцветная | E125: 0
A126: 81 | C126: Акула шершавая | E126: 0
A127: 82 | C127: Калкан черноморский | E127: 0
A128: 83 | C128: Сом жирафовый | E128: 3
A129: 84 | C129: Карп африканский | E129: 9
A130: 85 | C130: Фахака | E130: 8
A131: 86 | C131: Группер красноротый | E131: 18
A132: 87 | C132: Протоптер мраморный | E132: 2
A133: 88 | C133: Полиптер | E133: 7
A134: 89 | C134: Семутунду | E134: 6
A135: 90 | C135: Мормиропс угревидный | E135: 15
A136: 91 | C136: Лягушка нильская | E136: 0
A137: 92 | C137: Мелания песчаная | E137: 0
A138: 93 | C138: Карась морской чернополосый | E138: 2
A139: 94 | C139: Карась-барабан | E139: 0
A140: 95 | C140: Шипощёк длинноперый | E140: 0
A141: 96 | C141: Рыба-кабан трехполосая | E141: 0
A142: 97 | C142: Удильщик Джонсона | E142: 0
A143: 98 | C143: Скат-торпедо электрический | E143: 1
A144: 99 | C144: Мурена гигантская | E144: 7
A145: 100 | C145: Скат-орляк пятнистый | E145: 0
A146: 101 | C146: Луциан - Бохар | E146: 12
A147: 102 | C147: Тунец индо-тихоокеанский | E147: 10
A148: 103 | C148: Акула свиноглазая | E148: 3
A149: 104 | C149: Аулонокара Бенша | E149: 6
A150: 105 | C150: Аулонокара Ньяса | E150: 3
A151: 106 | C151: Аристохромис Кpucmu | E151: 7
A152: 107 | C152: Кит Бискайский | E152: 0
A153: 108 | C153: Сферомия пятнистая | E153: 0
A154: 109 | C154: Клоун танганьикский | E154: 8
A155: 110 | C155: Королева Ньяса | E155: 0
A156: 111 | C156: Кальвус | E156: 27
A157: 112 | C157: Бабочка малавийская | E157: 79
A158: 113 | C158: Бычок краснозубый | E158: 10
A159: 114 | C159: Мурена перечная | E159: 4
A160: 115 | C160: Неалот | E160: 0
A161: 116 | C161: Мена пятнистая | E161: 2
A162: 117 | C162: Бородавчатка красноморская | E162: 3
A163: 118 | C163: Крылатка-зебра | E163: 0
A164: 119 | C164: Тигровая рыба обыкновенная | E164: 0
A165: 120 | C165: Китовая акула - альбинос | E165: 0
A166: 121 | E166: 0
A167: 122 | C167: Свистулька голубопятнистая | E167: 0
A168: 123 | C168: Скорпенопсис дьявольский | E168: 5
A169: 124 | C169: Собачка речная | E169: 4
A170: 125 | C170: Скат тэниура лимма | E170: 3
A171: 126 | C171: Тиляпия галилейская | E171: 0
A172: 127 | C172: Убанги | E172: 10
A173: 128 | C173: Тиляпия нильская | E173: 17
A174: 129 | C174: Баяд | E174: 7
A175: 130 | C175: Сом электрический | E175: 10
A176: 131 | C176: Шильб полосатый | E176: 0
A177: 132 | C177: Башир | E177: 38
A178: 133 | C178: Ящероголов красный | E178: 14
A179: 134 | C179: Каранг золотой | E179: 12
A180: 135 | C180: Акула рифовая | E180: 2
A181: 136 | C181: Группер таувина | E181: 4
A182: 137 | C182: Тунец скумбриевидный | E182: 26
A183: 138 | C183: Тилозур красноморский | E183: 1
A184: 139 | C184: Цитарина обыкновенная | E184: 7
A185: 140 | C185: Хемихромис-красавец | E185: 31
A186: 141 | C186: Алеста | E186: 59
A187: 142 | C187: Поллимир Исидора | E187: 6
A188: 143 | C188: Тиляпия Зилля | E188: 18
A189: 144 | C189: Нильский окунь | E189: 4
A190: 145 | C190: Линофрина индийская | E190: 0
A191: 146 | C191: Аба-аба | E191: 0
A192: 147 | C192: Горгасия красноморская | E192: 1
A193: 148 | C193: Вунду | E193: 20
A194: 149 | C194: Акула - квагга | E194: 0
A195: 150 | C195: Оксимонокант длиннорылый | E195: 0
A196: 151 | C196: Макрурус вооруженный | E196: 0
A197: 152 | C197: Группер белоокаймленный | E197: 0
A198: 153 | C198: Синодонтис вуалевый | E198: 0
A199: 154 | C199: Велифер | E199: 0
A200: 155 | C200: Крокодил нильский | E200: 1
A201: 156 | C201: Конус березовый | E201: 0
A202: 157 | C202: Плоскоголов пятнистый | E202: 2
A203: 158 | C203: Тигровая рыба нильская | E203: 2
... 1239 more rows

Sheet Вычисления (hidden)
C2: 4291 | D2: 904 | E2: =VLOOKUP(MAX(Table_0[Место:]),'Выгрузка с сайта'!$A:$E,5,0) -> 22845
C3: 179 | D3: 278 | E3: =VLOOKUP($A$5,'Выгрузка с сайта'!$C:$E,3,0) -> 22845
B4: х | C4: =1 - C3/C2 -> 0.9582847821 | D4: =1 - D3/D2 -> 0.6924778761 | E4: =1 - E3/E2 -> 0
A5: Финвал | B5: у | C5: 0.9036766383 | D5: 0.7127701105 | E5: =E7*E4+E6 -> 0.2154220584
B6: b | C6: =C5-C7*C4 -> 0.2154220584 | D6: =D5-D7*D4 -> 0.2154220584 | E6: =D6 -> 0.2154220584
B7: a | C7: =($C$5-$D$5)/($C$4-$D$4) -> 0.7182150784 | D7: =($C$5-$D$5)/($C$4-$D$4) -> 0.7182150784 | E7: =D7 -> 0.7182150784
C9: 4282 | D9: 4915 | E9: =VLOOKUP(MAX(Table_0[Место:]),'Выгрузка с сайта'!$A:$E,5,0) -> 22845
C10: 30 | D10: 2819 | E10: =VLOOKUP($A$12,'Выгрузка с сайта'!$C:$E,3,0) -> 54
B11: х | C11: =1 - C10/C9 -> 0.9929939281 | D11: =1 - D10/D9 -> 0.4264496439 | E11: =1 - E10/E9 -> 0.9976362443
A12: Кит Горбатый | B12: у | C12: 1.091846266 | D12: 0.6134320665 | E12: =E14*E11+E13 -> 1.095766436
B13: b | C13: =C12-C14*C11 -> 0.2533197665 | D13: =D12-D14*D11 -> 0.2533197665 | E13: =D13 -> 0.2533197665
B14: a | C14: =($C$12-$D$12)/($C$11-$D$11) -> 0.8444427263 | D14: =($C$12-$D$12)/($C$11-$D$11) -> 0.8444427263 | E14: =D14 -> 0.8444427263
B16: 1289 | C16: 12730 | D16: 4915 | E16: =VLOOKUP(MAX(Table_0[Место:]),'Выгрузка с сайта'!$A:$E,5,0) -> 22845
C17: 58 | D17: 1143 | E17: =VLOOKUP($A$19,'Выгрузка с сайта'!$C:$E,3,0) -> 7
B18: х | C18: =1 - C17/C16 -> 0.9954438335 | D18: =1 - D17/D16 -> 0.7674465921 | E18: =1 - E17/E16 -> 0.9996935872
A19: Кит синий северный | B19: у | C19: 1.43937801 | D19: 1.186046408 | E19: =E21*E18+E20 -> 1.444099984
B20: b | C20: =C19-C21*C18 -> 0.333323481 | D20: =D19-D21*D18 -> 0.333323481 | E20: =D20 -> 0.333323481
B21: a | C21: =($C$19-$D$19)/($C$18-$D$18) -> 1.111116963 | D21: =($C$19-$D$19)/($C$18-$D$18) -> 1.111116963 | E21: =D21 -> 1.111116963
C23: 4282 | D23: 4915 | E23: =VLOOKUP(MAX(Table_0[Место:]),'Выгрузка с сайта'!$A:$E,5,0) -> 22845
C24: 151 | D24: 652 | E24: =VLOOKUP($A$26,'Выгрузка с сайта'!$C:$E,3,0) -> 339
B25: х | C25: =1 - C24/C23 -> 0.9647361046 | D25: =1 - D24/D23 -> 0.8673448627 | E25: =1 - E24/E23 -> 0.9851608667
A26: Кашалот | B26: у | C26: 1.019945751 | D26: 0.9414007788 | E26: =E28*E25+E27 -> 1.036418098
B27: b | C27: =C26-C28*C25 -> 0.2418966264 | D27: =D26-D28*D25 -> 0.2418966264 | E27: =D27 -> 0.2418966264
B28: a | C28: =($C$26-$D$26)/($C$25-$D$25) -> 0.8064890708 | D28: =($C$26-$D$26)/($C$25-$D$25) -> 0.8064890708 | E28: =D28 -> 0.8064890708
C30: 12730 | D30: 4915 | E30: =VLOOKUP(MAX(Table_0[Место:]),'Выгрузка с сайта'!$A:$E,5,0) -> 22845
C31: 52 | D31: 455 | E31: =VLOOKUP($A$33,'Выгрузка с сайта'!$C:$E,3,0) -> 28
B32: х | C32: =1 - C31/C30 -> 0.995915161 | D32: =1 - D31/D30 -> 0.9074262462 | E32: =1 - E31/E30 -> 0.9987743489
A33: Кит горбатый-альбинос | B33: у | C33: 1.727857089 | D33: 1.609866182 | E33: =E35*E32+E34 -> 1.731669523
B34: b | C34: =C33-C35*C32 -> 0.3999062056 | D34: =D33-D35*D32 -> 0.3999062056 | E34: =D34 -> 0.3999062056
B35: a | C35: =($C$33-$D$33)/($C$32-$D$32) -> 1.333397598 | D35: =($C$33-$D$33)/($C$32-$D$32) -> 1.333397598 | E35: =D35 -> 1.333397598
C37: 12730 | D37: 4915 | E37: =VLOOKUP(MAX(Table_0[Место:]),'Выгрузка с сайта'!$A:$E,5,0) -> 22845
C38: 13 | D38: 16 | E38: =VLOOKUP($A$40,'Выгрузка с сайта'!$C:$E,3,0) -> 8
B39: х | C39: =1 - C38/C37 -> 0.9989787903 | D39: =1 - D38/D37 -> 0.9967446592 | E39: =1 - E38/E37 -> 0.999649814
A40: Кит серый | B40: у | C40: 0.952566527 | D40: 0.950921238 | E40: =E42*E39+E41 -> 0.9530606914
B41: b | C41: =C40-C42*C39 -> 0.2168850573 | D41: =D40-D42*D39 -> 0.2168850573 | E41: =D41 -> 0.2168850573
B42: a | C42: =($C$40-$D$40)/($C$39-$D$39) -> 0.7364335228 | D42: =($C$40-$D$40)/($C$39-$D$39) -> 0.7364335228 | E42: =D42 -> 0.7364335228
C44: 12730 | D44: 4915 | E44: =VLOOKUP(MAX(Table_0[Место:]),'Выгрузка с сайта'!$A:$E,5,0) -> 22845
C45: 23 | D45: 303 | E45: =VLOOKUP($A$47,'Выгрузка с сайта'!$C:$E,3,0) -> 0
B46: х | C46: =1 - C45/C44 -> 0.9981932443 | D46: =1 - D45/D44 -> 0.9383519837 | E46: =1 - E45/E44 -> 1
A47: Кит японский | B47: у | C47: 2.163652124 | D47: 2.063912857 | E47: =E49*E46+E48 -> 2.166663499
B48: b | C48: =C47-C49*C46 -> 0.4999327935 | D48: =D47-D49*D46 -> 0.4999327935 | E48: =D48 -> 0.4999327935
B49: a | C49: =($C$47-$D$47)/($C$46-$D$46) -> 1.666730706 | D49: =($C$47-$D$47)/($C$46-$D$46) -> 1.666730706 | E49: =D49 -> 1.666730706
C51: 12730 | D51: 4915 | E51: =VLOOKUP(MAX(Table_0[Место:]),'Выгрузка с сайта'!$A:$E,5,0) -> 22845
C52: 199 | D52: 117 | E52: =VLOOKUP($A$54,'Выгрузка с сайта'!$C:$E,3,0) -> 211
B53: х | C53: =1 - C52/C51 -> 0.9843676355 | D53: =1 - D52/D51 -> 0.9761953204 | E53: =1 - E52/E51 -> 0.9907638433
A54: Сейвал или кит ивасевый | B54: у | C54: 0.6100712367 | D54: 0.6061813617 | E54: =E56*E53+E55 -> 0.6131157165
B55: b | C55: =C54-C56*C53 -> 0.1415299546 | D55: =D54-D56*D53 -> 0.1415299546 | E55: =D55 -> 0.1415299546
B56: a | C56: =($C$54-$D$54)/($C$53-$D$53) -> 0.4759820063 | D56: =($C$54-$D$54)/($C$53-$D$53) -> 0.4759820063 | E56: =D56 -> 0.4759820063
